[Event "*** Titled Tuesday Blitz"]
[Site "Chess.com"]
[Date "2020.11.24"]
[Round "7"]
[White "2nd_life"]
[Black "keepitcool9499"]
[Result "0-1"]
[WhiteElo "2502"]
[BlackElo "2630"]
[TimeControl "180+1"]
[EndTime "11:34:21 PST"]
[Termination "keepitcool9499 won on time"]

1. e4 {[%clk 0:03:00.9]} 1... e6 {[%clk 0:03:00.9]} 2. Nf3 {[%clk 0:03:00.3]}
2... d5 {[%clk 0:03:00.8]} 3. e5 {[%clk 0:03:00.7]} 3... c5 {[%clk 0:03:00.1]}
4. b4 {[%clk 0:03:01.1]} 4... cxb4 {[%clk 0:03:01]} 5. a3 {[%clk 0:03:01.2]}
5... Qa5 {[%clk 0:03:00.6]} 6. d4 {[%clk 0:02:55.1]} 6... Nc6 {[%clk 0:02:35.4]}
7. Bd3 {[%clk 0:02:50.2]} 7... Bd7 {[%clk 0:02:33.3]} 8. O-O {[%clk 0:02:49]}
8... Nge7 {[%clk 0:02:30.2]} 9. Nbd2 {[%clk 0:02:23.3]} 9... Nf5 {[%clk
0:02:17.9]} 10. Nb3 {[%clk 0:02:18.8]} 10... Qd8 {[%clk 0:02:12.4]} 11. axb4
{[%clk 0:02:18.1]} 11... Bxb4 {[%clk 0:02:09.6]} 12. Bg5 {[%clk 0:01:55.9]}
12... Be7 {[%clk 0:02:00.7]} 13. Bxe7 {[%clk 0:01:39.7]} 13... Qxe7 {[%clk
0:02:01.6]} 14. Bxf5 {[%clk 0:01:25.2]} 14... exf5 {[%clk 0:01:50.1]} 15. Nc5
{[%clk 0:01:22.9]} 15... b6 {[%clk 0:01:46.1]} 16. Nd3 {[%clk 0:01:15.1]} 16...
O-O {[%clk 0:01:41.9]} 17. Nf4 {[%clk 0:01:14.5]} 17... Be6 {[%clk 0:01:39.7]}
18. h4 {[%clk 0:01:09.3]} 18... Rfc8 {[%clk 0:01:34.8]} 19. c3 {[%clk
0:00:56.2]} 19... Na5 {[%clk 0:01:29.4]} 20. Rc1 {[%clk 0:00:47.4]} 20... Rc7
{[%clk 0:01:25]} 21. Qd3 {[%clk 0:00:41.6]} 21... Rac8 {[%clk 0:01:17.9]} 22.
Ng5 {[%clk 0:00:40.2]} 22... h6 {[%clk 0:01:14.8]} 23. Ngxe6 {[%clk 0:00:31.4]}
23... fxe6 {[%clk 0:01:15.7]} 24. h5 {[%clk 0:00:30.3]} 24... Rc6 {[%clk
0:01:07.9]} 25. Rfe1 {[%clk 0:00:29.7]} 25... Nc4 {[%clk 0:01:00.7]} 26. g3
{[%clk 0:00:20]} 26... a5 {[%clk 0:00:58.2]} 27. Kg2 {[%clk 0:00:19.4]} 27...
Ra8 {[%clk 0:00:57.7]} 28. Rc2 {[%clk 0:00:18.9]} 28... b5 {[%clk 0:00:58]} 29.
Ng6 {[%clk 0:00:12.5]} 29... Qf7 {[%clk 0:00:56.7]} 30. f4 {[%clk 0:00:11]}
30... b4 {[%clk 0:00:49.7]} 31. cxb4 {[%clk 0:00:09.9]} 31... axb4 {[%clk
0:00:50.6]} 32. Rb1 {[%clk 0:00:09.6]} 32... Ra3 {[%clk 0:00:45.8]} 33. Rxb4
{[%clk 0:00:02.6]} 33... Qa7 {[%clk 0:00:38.8]} 0-1

[Event "*** Titled Tuesday Blitz"]
[Site "Chess.com"]
[Date "2020.11.24"]
[Round "7"]
[White "Zubrrr"]
[Black "shnitez"]
[Result "0-1"]
[WhiteElo "2644"]
[BlackElo "2522"]
[TimeControl "180+1"]
[EndTime "11:34:28 PST"]
[Termination "shnitez won by resignation"]

1. d4 {[%clk 0:02:58.8]} 1... Nf6 {[%clk 0:02:58.7]} 2. c4 {[%clk 0:02:59.1]}
2... e6 {[%clk 0:02:58.9]} 3. g3 {[%clk 0:02:59.6]} 3... c5 {[%clk 0:02:58.5]}
4. Nf3 {[%clk 0:02:58.8]} 4... cxd4 {[%clk 0:02:57.2]} 5. Nxd4 {[%clk
0:02:59.7]} 5... d5 {[%clk 0:02:56.9]} 6. Bg2 {[%clk 0:02:59.9]} 6... e5 {[%clk
0:02:54]} 7. Nf3 {[%clk 0:03:00.2]} 7... d4 {[%clk 0:02:53.8]} 8. O-O {[%clk
0:02:59.9]} 8... Nc6 {[%clk 0:02:54.2]} 9. e3 {[%clk 0:02:58.8]} 9... d3 {[%clk
0:02:42.2]} 10. e4 {[%clk 0:02:56.9]} 10... Bg4 {[%clk 0:02:29.2]} 11. h3 {[%clk
0:02:51.3]} 11... Be6 {[%clk 0:02:28.7]} 12. b3 {[%clk 0:02:11]} 12... Nxe4
{[%clk 0:01:50.7]} 13. Bb2 {[%clk 0:02:10.9]} 13... Bc5 {[%clk 0:01:43.4]} 14.
Nxe5 {[%clk 0:02:10.2]} 14... Bd4 {[%clk 0:01:12.1]} 15. Nxc6 {[%clk 0:02:07.4]}
15... bxc6 {[%clk 0:01:12.3]} 16. Bxd4 {[%clk 0:02:04.4]} 16... Qxd4 {[%clk
0:01:12.8]} 17. Nd2 {[%clk 0:01:57.8]} 17... Nxg3 {[%clk 0:00:55.1]} 18. Bxc6+
{[%clk 0:01:56.8]} 18... Ke7 {[%clk 0:00:54.1]} 19. Bxa8 {[%clk 0:01:37.4]}
19... Nxf1 {[%clk 0:00:48.5]} 20. Qxf1 {[%clk 0:01:35.4]} 20... Rxa8 {[%clk
0:00:47.1]} 21. Re1 {[%clk 0:01:34.7]} 21... Rd8 {[%clk 0:00:41.7]} 22. Re3
{[%clk 0:01:30.9]} 22... Kf8 {[%clk 0:00:33.4]} 23. Nf3 {[%clk 0:01:05.5]} 23...
Qc3 {[%clk 0:00:24.4]} 24. Qd1 {[%clk 0:00:37.8]} 24... Qc2 {[%clk 0:00:20.8]}
25. Qd2 {[%clk 0:00:37.4]} 25... Bxh3 {[%clk 0:00:18.2]} 26. Qb4+ {[%clk
0:00:23.6]} 26... Kg8 {[%clk 0:00:18.2]} 27. Qe7 {[%clk 0:00:20]} 27... Rf8
{[%clk 0:00:16.5]} 28. Ng5 {[%clk 0:00:14.2]} 28... d2 {[%clk 0:00:13.3]} 0-1

[Event "*** Titled Tuesday Blitz"]
[Site "Chess.com"]
[Date "2020.11.24"]
[Round "7"]
[White "yobdc"]
[Black "theblitzchamp"]
[Result "1-0"]
[WhiteElo "2490"]
[BlackElo "2602"]
[TimeControl "180+1"]
[EndTime "11:34:29 PST"]
[Termination "yobdc won by checkmate"]

1. d4 {[%clk 0:03:00.9]} 1... c6 {[%clk 0:03:00.9]} 2. Nf3 {[%clk 0:02:59.3]}
2... d5 {[%clk 0:03:01.3]} 3. e3 {[%clk 0:02:59.7]} 3... Nf6 {[%clk 0:02:59.9]}
4. Bd3 {[%clk 0:02:59.9]} 4... Bg4 {[%clk 0:02:57.4]} 5. Nbd2 {[%clk 0:02:58.9]}
5... Nbd7 {[%clk 0:02:57]} 6. h3 {[%clk 0:02:59.2]} 6... Bh5 {[%clk 0:02:57.3]}
7. b3 {[%clk 0:02:58.3]} 7... e5 {[%clk 0:02:52.4]} 8. dxe5 {[%clk 0:02:58.1]}
8... Nxe5 {[%clk 0:02:52]} 9. Bb2 {[%clk 0:02:56]} 9... Nxf3+ {[%clk 0:02:44.6]}
10. Nxf3 {[%clk 0:02:52.9]} 10... Bb4+ {[%clk 0:02:44.6]} 11. c3 {[%clk
0:02:52.8]} 11... Bd6 {[%clk 0:02:45.2]} 12. Qc2 {[%clk 0:02:46.8]} 12... O-O
{[%clk 0:02:43.8]} 13. O-O-O {[%clk 0:02:38.7]} 13... Qa5 {[%clk 0:02:39.7]} 14.
Kb1 {[%clk 0:02:37.5]} 14... Ba3 {[%clk 0:02:36.8]} 15. Ba1 {[%clk 0:02:31.1]}
15... b5 {[%clk 0:02:29.8]} 16. g4 {[%clk 0:02:22.8]} 16... Bg6 {[%clk
0:02:29.3]} 17. Ne5 {[%clk 0:02:18.4]} 17... Qc7 {[%clk 0:02:12.6]} 18. Bxg6
{[%clk 0:02:06.4]} 18... hxg6 {[%clk 0:02:13.5]} 19. f4 {[%clk 0:02:04.7]} 19...
Ne4 {[%clk 0:02:10.7]} 20. h4 {[%clk 0:02:03.6]} 20... Rfe8 {[%clk 0:01:00.1]}
21. h5 {[%clk 0:02:00.3]} 21... Rxe5 {[%clk 0:00:41.8]} 22. fxe5 {[%clk
0:01:59.7]} 22... g5 {[%clk 0:00:37.5]} 23. h6 {[%clk 0:01:52.1]} 23... Qxe5
{[%clk 0:00:17.8]} 24. hxg7 {[%clk 0:01:42.7]} 24... Qxg7 {[%clk 0:00:17]} 25.
c4 {[%clk 0:01:41.2]} 25... f6 {[%clk 0:00:16.9]} 26. cxd5 {[%clk 0:01:38.5]}
26... cxd5 {[%clk 0:00:17.2]} 27. Rxd5 {[%clk 0:01:37.4]} 27... Qg6 {[%clk
0:00:17.6]} 28. Rhd1 {[%clk 0:01:23.5]} 28... Re8 {[%clk 0:00:17.4]} 29. Rd8
{[%clk 0:01:14.2]} 29... Bb4 {[%clk 0:00:16.4]} 30. Bb2 {[%clk 0:01:00.1]} 30...
Kf7 {[%clk 0:00:10.8]} 31. Rxe8 {[%clk 0:00:54.3]} 31... Kxe8 {[%clk 0:00:05.2]}
32. Rd4 {[%clk 0:00:46.1]} 32... f5 {[%clk 0:00:02.2]} 33. gxf5 {[%clk
0:00:44.9]} 33... Nd2+ {[%clk 0:00:01.6]} 34. Rxd2 {[%clk 0:00:43.8]} 34... Qh5
{[%clk 0:00:01.9]} 35. Qc6+ {[%clk 0:00:41.5]} 35... Kf8 {[%clk 0:00:02]} 36.
Rd8+ {[%clk 0:00:41.1]} 36... Kf7 {[%clk 0:00:02.6]} 37. Qe6# {[%clk 0:00:41.2]}
1-0

[Event "*** Titled Tuesday Blitz"]
[Site "Chess.com"]
[Date "2020.11.24"]
[Round "7"]
[White "Jospem"]
[Black "Infernal_XaM"]
[Result "1-0"]
[WhiteElo "3065"]
[BlackElo "2850"]
[TimeControl "180+1"]
[EndTime "11:34:30 PST"]
[Termination "Jospem won by resignation"]

1. e4 {[%clk 0:03:00.9]} 1... e5 {[%clk 0:03:00]} 2. Nf3 {[%clk 0:03:00.1]} 2...
Nc6 {[%clk 0:03:00.6]} 3. Bb5 {[%clk 0:03:00.2]} 3... a6 {[%clk 0:03:00.6]} 4.
Ba4 {[%clk 0:03:00.5]} 4... Nge7 {[%clk 0:03:00.7]} 5. c3 {[%clk 0:02:59.5]}
5... g6 {[%clk 0:03:00]} 6. O-O {[%clk 0:02:59.2]} 6... Bg7 {[%clk 0:03:00.1]}
7. d4 {[%clk 0:02:59.7]} 7... exd4 {[%clk 0:03:00.1]} 8. cxd4 {[%clk 0:02:59.5]}
8... b5 {[%clk 0:03:00.1]} 9. Bb3 {[%clk 0:02:59.9]} 9... O-O {[%clk 0:02:59.8]}
10. a4 {[%clk 0:03:00.1]} 10... b4 {[%clk 0:02:59.2]} 11. d5 {[%clk 0:02:59.7]}
11... Na5 {[%clk 0:02:59.1]} 12. Nbd2 {[%clk 0:02:58.6]} 12... c5 {[%clk
0:02:58.5]} 13. dxc6 {[%clk 0:02:31.2]} 13... dxc6 {[%clk 0:02:58.1]} 14. Qc2
{[%clk 0:02:20]} 14... Bg4 {[%clk 0:02:48.8]} 15. h3 {[%clk 0:02:14.8]} 15...
Bxf3 {[%clk 0:02:48.8]} 16. Nxf3 {[%clk 0:02:15.7]} 16... c5 {[%clk 0:02:49]}
17. Bg5 {[%clk 0:01:52.1]} 17... c4 {[%clk 0:02:44.9]} 18. Bxc4 {[%clk
0:01:52.3]} 18... Rc8 {[%clk 0:02:44.8]} 19. Rad1 {[%clk 0:01:15.1]} 19... Qe8
{[%clk 0:02:44.5]} 20. b3 {[%clk 0:01:12.5]} 20... Nxc4 {[%clk 0:02:40.1]} 21.
bxc4 {[%clk 0:01:12.4]} 21... h6 {[%clk 0:02:40.3]} 22. Be3 {[%clk 0:01:08]}
22... Qc6 {[%clk 0:02:36.8]} 23. c5 {[%clk 0:01:04.2]} 23... Qb7 {[%clk
0:02:35.8]} 24. Rb1 {[%clk 0:00:48.7]} 24... Rfe8 {[%clk 0:02:33.2]} 25. Rfd1
{[%clk 0:00:42.5]} 25... Nc6 {[%clk 0:02:32.3]} 26. Rd6 {[%clk 0:00:40.2]} 26...
Qe7 {[%clk 0:02:25.7]} 27. Rxc6 {[%clk 0:00:26.3]} 27... Rxc6 {[%clk 0:02:25]}
28. Rxb4 {[%clk 0:00:27.2]} 28... Rd8 {[%clk 0:02:20.9]} 29. g3 {[%clk 0:00:24]}
29... Bf8 {[%clk 0:02:13.4]} 30. Rc4 {[%clk 0:00:22.6]} 30... Rdc8 {[%clk
0:02:07.1]} 31. Kg2 {[%clk 0:00:20]} 31... Qe8 {[%clk 0:01:54.5]} 32. h4 {[%clk
0:00:20]} 32... a5 {[%clk 0:01:49.8]} 33. Qc1 {[%clk 0:00:20.2]} 33... Kh7
{[%clk 0:01:47.5]} 34. h5 {[%clk 0:00:20.7]} 34... g5 {[%clk 0:01:46]} 35. e5
{[%clk 0:00:17.9]} 35... Qe6 {[%clk 0:01:41.4]} 36. Qc2+ {[%clk 0:00:18.1]}
36... Kg8 {[%clk 0:01:41.7]} 37. Qe4 {[%clk 0:00:18.4]} 37... Bxc5 {[%clk
0:01:39.4]} 38. Bxc5 {[%clk 0:00:11.7]} 38... Rxc5 {[%clk 0:01:39.4]} 39. Rd4
{[%clk 0:00:11.6]} 39... Qc6 {[%clk 0:01:38.4]} 40. Qf5 {[%clk 0:00:09.2]} 40...
Qe6 {[%clk 0:01:33.5]} 41. Qe4 {[%clk 0:00:09.4]} 41... Rc4 {[%clk 0:01:30.7]}
42. Kh2 {[%clk 0:00:06.6]} 42... Rxd4 {[%clk 0:01:22.4]} 43. Nxd4 {[%clk
0:00:07.5]} 43... Qc4 {[%clk 0:01:22.4]} 44. e6 {[%clk 0:00:08.1]} 44... Re8
{[%clk 0:01:17]} 45. Qf5 {[%clk 0:00:05.9]} 45... Kg7 {[%clk 0:01:07.1]} 46.
Qxf7+ {[%clk 0:00:05.6]} 1-0

[Event "*** Titled Tuesday Blitz"]
[Site "Chess.com"]
[Date "2020.11.24"]
[Round "7"]
[White "Lestofante90"]
[Black "Chigorinetz"]
[Result "1-0"]
[WhiteElo "2795"]
[BlackElo "2564"]
[TimeControl "180+1"]
[EndTime "11:34:31 PST"]
[Termination "Lestofante90 won by resignation"]

1. e4 {[%clk 0:03:00.9]} 1... c5 {[%clk 0:02:59.3]} 2. Nf3 {[%clk 0:03:01.2]}
2... Nc6 {[%clk 0:02:59.2]} 3. d4 {[%clk 0:03:01.7]} 3... cxd4 {[%clk
0:02:58.4]} 4. Nxd4 {[%clk 0:03:02.6]} 4... g6 {[%clk 0:02:58.7]} 5. Nc3 {[%clk
0:03:02.6]} 5... Bg7 {[%clk 0:02:58.7]} 6. Be3 {[%clk 0:03:03.2]} 6... Nf6
{[%clk 0:02:58.7]} 7. Bc4 {[%clk 0:03:03.8]} 7... O-O {[%clk 0:02:58.4]} 8. Bb3
{[%clk 0:03:04.5]} 8... d6 {[%clk 0:02:58.2]} 9. f3 {[%clk 0:03:04.3]} 9... Qa5
{[%clk 0:02:58]} 10. Qd2 {[%clk 0:03:01.4]} 10... Nxd4 {[%clk 0:02:57.5]} 11.
Bxd4 {[%clk 0:03:01.1]} 11... Be6 {[%clk 0:02:57.9]} 12. O-O-O {[%clk
0:03:00.5]} 12... b5 {[%clk 0:02:56.2]} 13. Kb1 {[%clk 0:03:00.6]} 13... b4
{[%clk 0:02:56.1]} 14. Nd5 {[%clk 0:02:57.2]} 14... Bxd5 {[%clk 0:02:55.5]} 15.
exd5 {[%clk 0:02:57.2]} 15... Qb5 {[%clk 0:02:54.6]} 16. g4 {[%clk 0:02:49]}
16... a5 {[%clk 0:02:51.7]} 17. g5 {[%clk 0:02:48.8]} 17... Nh5 {[%clk
0:02:48.3]} 18. Bxg7 {[%clk 0:02:41.2]} 18... Nxg7 {[%clk 0:02:47.9]} 19. Qd3
{[%clk 0:02:33.5]} 19... Qxd3 {[%clk 0:02:44.6]} 20. cxd3 {[%clk 0:02:27.9]}
20... a4 {[%clk 0:02:34.2]} 21. Bc4 {[%clk 0:02:23.1]} 21... e5 {[%clk
0:02:25.2]} 22. d4 {[%clk 0:02:11.1]} 22... exd4 {[%clk 0:01:39.8]} 23. Rxd4
{[%clk 0:02:12]} 23... Nf5 {[%clk 0:01:36.9]} 24. Re4 {[%clk 0:02:09]} 24... a3
{[%clk 0:01:29]} 25. Bb5 {[%clk 0:02:05.6]} 25... Rab8 {[%clk 0:01:17.2]} 26.
Bc6 {[%clk 0:02:05.5]} 26... Kg7 {[%clk 0:01:12.6]} 27. Rc1 {[%clk 0:02:01.6]}
27... h6 {[%clk 0:00:42.8]} 28. gxh6+ {[%clk 0:01:58.5]} 28... Kf6 {[%clk
0:00:42.8]} 29. Rcc4 {[%clk 0:01:58.8]} 29... b3 {[%clk 0:00:25]} 30. bxa3
{[%clk 0:01:57.2]} 30... bxa2+ {[%clk 0:00:24.2]} 31. Kxa2 {[%clk 0:01:58.1]}
31... Rh8 {[%clk 0:00:24]} 32. Rb4 {[%clk 0:01:56.4]} 32... Rbc8 {[%clk
0:00:23]} 33. a4 {[%clk 0:01:51.2]} 33... Rxh6 {[%clk 0:00:22.1]} 34. a5 {[%clk
0:01:47.8]} 34... Rxh2+ {[%clk 0:00:18.5]} 35. Rb2 {[%clk 0:01:48.2]} 35...
Rxb2+ {[%clk 0:00:14.1]} 36. Kxb2 {[%clk 0:01:49.1]} 36... Rc7 {[%clk
0:00:14.1]} 37. a6 {[%clk 0:01:47.8]} 37... Ra7 {[%clk 0:00:13.5]} 38. Bb7
{[%clk 0:01:43.8]} 38... g5 {[%clk 0:00:14.4]} 39. Kc3 {[%clk 0:01:42.7]} 39...
Ne7 {[%clk 0:00:14.3]} 40. Kc4 {[%clk 0:01:41.5]} 40... Ng6 {[%clk 0:00:12.8]}
41. Kb5 {[%clk 0:01:41.4]} 41... Ne5 {[%clk 0:00:12.6]} 42. Kb6 {[%clk
0:01:41.4]} 42... Rxa6+ {[%clk 0:00:12.6]} 43. Bxa6 {[%clk 0:01:39.4]} 43...
Nxf3 {[%clk 0:00:13.5]} 44. Kc7 {[%clk 0:01:37]} 44... Kf5 {[%clk 0:00:11.5]}
45. Re7 {[%clk 0:01:34.7]} 45... f6 {[%clk 0:00:08.6]} 46. Kxd6 {[%clk
0:01:33.7]} 46... g4 {[%clk 0:00:08.8]} 47. Kc5 {[%clk 0:01:24]} 47... g3 {[%clk
0:00:08]} 48. Bf1 {[%clk 0:01:24.6]} 48... Ng5 {[%clk 0:00:05.1]} 49. d6 {[%clk
0:01:23.3]} 49... Ne4+ {[%clk 0:00:04.6]} 50. Rxe4 {[%clk 0:01:23.1]} 50... Kxe4
{[%clk 0:00:04.1]} 51. d7 {[%clk 0:01:24]} 51... f5 {[%clk 0:00:03.9]} 52. d8=Q
{[%clk 0:01:24.5]} 1-0

[Event "*** Titled Tuesday Blitz"]
[Site "Chess.com"]
[Date "2020.11.24"]
[Round "7"]
[White "InitiatingASC"]
[Black "cstevens1"]
[Result "0-1"]
[WhiteElo "2455"]
[BlackElo "2584"]
[TimeControl "180+1"]
[EndTime "11:34:31 PST"]
[Termination "cstevens1 won by checkmate"]

1. Nf3 {[%clk 0:03:00.9]} 1... d5 {[%clk 0:02:50.3]} 2. g3 {[%clk 0:02:59.3]}
2... Nf6 {[%clk 0:02:48.2]} 3. Bg2 {[%clk 0:02:54.8]} 3... c6 {[%clk 0:02:48.7]}
4. O-O {[%clk 0:02:52.7]} 4... Bf5 {[%clk 0:02:49.1]} 5. d3 {[%clk 0:02:52.6]}
5... h6 {[%clk 0:02:49.1]} 6. Nbd2 {[%clk 0:02:51.9]} 6... Bh7 {[%clk
0:02:49.7]} 7. a3 {[%clk 0:02:51.7]} 7... e6 {[%clk 0:02:50.2]} 8. Rb1 {[%clk
0:02:51.7]} 8... Be7 {[%clk 0:02:50.7]} 9. b4 {[%clk 0:02:51.1]} 9... O-O {[%clk
0:02:51.6]} 10. Bb2 {[%clk 0:02:51]} 10... Na6 {[%clk 0:02:50.2]} 11. Re1 {[%clk
0:02:46.8]} 11... Nc7 {[%clk 0:02:50.1]} 12. e4 {[%clk 0:02:47.1]} 12... a5
{[%clk 0:02:50]} 13. c3 {[%clk 0:02:43.2]} 13... Nd7 {[%clk 0:02:47.7]} 14. Qe2
{[%clk 0:02:41.6]} 14... Re8 {[%clk 0:02:47.7]} 15. Nb3 {[%clk 0:02:37.8]} 15...
axb4 {[%clk 0:02:45.6]} 16. axb4 {[%clk 0:02:29.4]} 16... Bf8 {[%clk 0:02:40.9]}
17. Ra1 {[%clk 0:02:28.8]} 17... Nb6 {[%clk 0:02:38.1]} 18. Na5 {[%clk
0:02:18.9]} 18... Qc8 {[%clk 0:02:35.1]} 19. Bh3 {[%clk 0:02:13.5]} 19... Ra6
{[%clk 0:02:31.8]} 20. Nd4 {[%clk 0:02:10.7]} 20... Qa8 {[%clk 0:02:28.2]} 21.
f4 {[%clk 0:02:09.6]} 21... c5 {[%clk 0:02:17.8]} 22. Nc2 {[%clk 0:02:05.1]}
22... cxb4 {[%clk 0:01:27]} 23. cxb4 {[%clk 0:01:59.8]} 23... Nb5 {[%clk
0:01:18.5]} 24. Nb3 {[%clk 0:01:56.2]} 24... Na4 {[%clk 0:01:14.3]} 25. Be5
{[%clk 0:01:40.6]} 25... dxe4 {[%clk 0:00:59.4]} 26. dxe4 {[%clk 0:01:34.7]}
26... Nbc3 {[%clk 0:00:59.6]} 27. Qc4 {[%clk 0:01:21.4]} 27... Rc8 {[%clk
0:00:54.8]} 28. Qd4 {[%clk 0:01:21.2]} 28... Nxe4 {[%clk 0:00:43.3]} 29. Rxe4
{[%clk 0:01:05.8]} 29... Rxc2 {[%clk 0:00:43.5]} 30. Ree1 {[%clk 0:00:59.8]}
30... Nc3 {[%clk 0:00:39.6]} 31. Qd7 {[%clk 0:00:39]} 31... Ne2+ {[%clk
0:00:27.7]} 32. Kf1 {[%clk 0:00:30.2]} 32... Raa2 {[%clk 0:00:27.9]} 33. Na5
{[%clk 0:00:15.3]} 33... b6 {[%clk 0:00:26.3]} 34. Rxa2 {[%clk 0:00:15.2]} 34...
Qh1+ {[%clk 0:00:25.4]} 35. Kf2 {[%clk 0:00:13.7]} 35... Qxh2+ {[%clk
0:00:25.1]} 36. Ke3 {[%clk 0:00:13.7]} 36... Qxg3# {[%clk 0:00:23.3]} 0-1

[Event "*** Titled Tuesday Blitz"]
[Site "Chess.com"]
[Date "2020.11.24"]
[Round "7"]
[White "Iskusnyh"]
[Black "penguingm1"]
[Result "1-0"]
[WhiteElo "2605"]
[BlackElo "2948"]
[TimeControl "180+1"]
[EndTime "11:34:32 PST"]
[Termination "Iskusnyh won by resignation"]

1. d4 {[%clk 0:03:00.9]} 1... e5 {[%clk 0:02:59.3]} 2. dxe5 {[%clk 0:02:57.1]}
2... Nc6 {[%clk 0:02:59.8]} 3. Nf3 {[%clk 0:02:51.1]} 3... d5 {[%clk 0:02:59.9]}
4. exd6 {[%clk 0:02:49.7]} 4... Bxd6 {[%clk 0:03:00]} 5. g3 {[%clk 0:02:46.3]}
5... Nf6 {[%clk 0:02:58]} 6. Bg2 {[%clk 0:02:46]} 6... Qe7 {[%clk 0:02:58.4]} 7.
Nc3 {[%clk 0:02:42.5]} 7... Bg4 {[%clk 0:02:58.7]} 8. Bg5 {[%clk 0:02:26]} 8...
O-O-O {[%clk 0:02:57.7]} 9. Qc1 {[%clk 0:02:21.5]} 9... h6 {[%clk 0:02:48.3]}
10. Bxf6 {[%clk 0:01:49.3]} 10... Qxf6 {[%clk 0:02:46.5]} 11. O-O {[%clk
0:01:40.8]} 11... Qe6 {[%clk 0:02:27.8]} 12. Nb5 {[%clk 0:01:17.4]} 12... Bc5
{[%clk 0:02:26.1]} 13. e3 {[%clk 0:01:16.8]} 13... Qf6 {[%clk 0:02:18.9]} 14.
Nfd4 {[%clk 0:01:07.7]} 14... Nxd4 {[%clk 0:02:17.2]} 15. exd4 {[%clk
0:01:07.3]} 15... Bxd4 {[%clk 0:02:17.8]} 16. Nxd4 {[%clk 0:01:02.3]} 16... Rxd4
{[%clk 0:02:18.7]} 17. c3 {[%clk 0:01:00.9]} 17... Rd3 {[%clk 0:01:52.9]} 18.
Qe1 {[%clk 0:00:59.3]} 18... Bf3 {[%clk 0:01:49]} 19. Bxf3 {[%clk 0:00:57]}
19... Qxf3 {[%clk 0:01:49.9]} 20. Qe7 {[%clk 0:00:56.8]} 20... Rhd8 {[%clk
0:01:49.8]} 21. Rae1 {[%clk 0:00:55.6]} 21... Rd2 {[%clk 0:01:45.4]} 22. Qc5
{[%clk 0:00:54.7]} 22... b6 {[%clk 0:01:40.8]} 23. Qc4 {[%clk 0:00:45.6]} 23...
Qd5 {[%clk 0:01:28.5]} 24. Qg4+ {[%clk 0:00:43.5]} 24... Kb7 {[%clk 0:01:13.7]}
25. Qxg7 {[%clk 0:00:43.1]} 25... Rd7 {[%clk 0:01:02.1]} 26. b4 {[%clk
0:00:39.2]} 26... Rxa2 {[%clk 0:00:57.1]} 27. Qxh6 {[%clk 0:00:38.4]} 27... f5
{[%clk 0:00:57.3]} 28. Qf4 {[%clk 0:00:35.2]} 28... Qd3 {[%clk 0:00:49.5]} 29.
Re3 {[%clk 0:00:33.2]} 29... Qc2 {[%clk 0:00:44.9]} 30. Rfe1 {[%clk 0:00:32.1]}
30... Rd2 {[%clk 0:00:42.6]} 31. Qf3+ {[%clk 0:00:30.6]} 31... Ka6 {[%clk
0:00:42.8]} 32. Rf1 {[%clk 0:00:29.4]} 32... Rd6 {[%clk 0:00:23.4]} 33. h4
{[%clk 0:00:27.3]} 33... f4 {[%clk 0:00:18.2]} 34. Qxf4 {[%clk 0:00:22.1]} 34...
Qg6 {[%clk 0:00:18.4]} 35. Qc4+ {[%clk 0:00:20.4]} 35... Kb7 {[%clk 0:00:18.7]}
36. Qxa2 {[%clk 0:00:20.4]} 1-0

[Event "*** Titled Tuesday Blitz"]
[Site "Chess.com"]
[Date "2020.11.24"]
[Round "7"]
[White "YoungMegaMind"]
[Black "Unknown_IM"]
[Result "1-0"]
[WhiteElo "2305"]
[BlackElo "2382"]
[TimeControl "180+1"]
[EndTime "11:34:32 PST"]
[Termination "YoungMegaMind won by checkmate"]

1. d4 {[%clk 0:03:00.9]} 1... Nf6 {[%clk 0:02:59.1]} 2. Nf3 {[%clk 0:02:59.9]}
2... c5 {[%clk 0:02:57.9]} 3. d5 {[%clk 0:02:59.1]} 3... d6 {[%clk 0:02:54.5]}
4. Nc3 {[%clk 0:02:57]} 4... g6 {[%clk 0:02:53.6]} 5. Nd2 {[%clk 0:02:50]} 5...
Bg7 {[%clk 0:02:53.7]} 6. e4 {[%clk 0:02:50.1]} 6... Nbd7 {[%clk 0:02:52.2]} 7.
Be2 {[%clk 0:02:48.5]} 7... O-O {[%clk 0:02:51.7]} 8. O-O {[%clk 0:02:48.3]}
8... a6 {[%clk 0:02:50.3]} 9. a4 {[%clk 0:02:47.9]} 9... e5 {[%clk 0:02:48.6]}
10. a5 {[%clk 0:02:36.3]} 10... Qe7 {[%clk 0:02:43.3]} 11. Nc4 {[%clk
0:02:34.8]} 11... Ne8 {[%clk 0:02:42.3]} 12. f3 {[%clk 0:02:34]} 12... Nc7
{[%clk 0:02:40.6]} 13. Na4 {[%clk 0:02:27.8]} 13... f5 {[%clk 0:02:38.7]} 14.
Be3 {[%clk 0:02:21.5]} 14... f4 {[%clk 0:02:37.9]} 15. Bf2 {[%clk 0:02:21.1]}
15... g5 {[%clk 0:02:35.2]} 16. c3 {[%clk 0:02:19.4]} 16... h5 {[%clk
0:02:30.9]} 17. Rb1 {[%clk 0:02:08.7]} 17... Kh8 {[%clk 0:02:21.9]} 18. b4
{[%clk 0:02:05]} 18... cxb4 {[%clk 0:02:20.4]} 19. Rxb4 {[%clk 0:02:04.5]} 19...
Rg8 {[%clk 0:02:18]} 20. Nab6 {[%clk 0:02:00.6]} 20... Bf8 {[%clk 0:02:10.8]}
21. Nxa8 {[%clk 0:01:57]} 21... Nxa8 {[%clk 0:02:10.1]} 22. Nb6 {[%clk
0:01:53.3]} 22... Naxb6 {[%clk 0:02:03.6]} 23. axb6 {[%clk 0:01:47.8]} 23... Nf6
{[%clk 0:02:00.3]} 24. Rc4 {[%clk 0:01:43.4]} 24... g4 {[%clk 0:01:57.4]} 25.
Rc7 {[%clk 0:01:39.8]} 25... Bd7 {[%clk 0:01:55.9]} 26. Bh4 {[%clk 0:01:39.1]}
26... gxf3 {[%clk 0:01:53.8]} 27. Bxf3 {[%clk 0:01:37.6]} 27... Rg7 {[%clk
0:01:43.6]} 28. Rxb7 {[%clk 0:01:35.1]} 28... Qd8 {[%clk 0:01:39.3]} 29. c4
{[%clk 0:01:27.1]} 29... Kg8 {[%clk 0:01:23.2]} 30. Qb3 {[%clk 0:01:14.8]} 30...
a5 {[%clk 0:01:09.5]} 31. Ra7 {[%clk 0:01:12.6]} 31... a4 {[%clk 0:00:50]} 32.
Qb4 {[%clk 0:01:12.2]} 32... Bc8 {[%clk 0:00:31]} 33. Rxg7+ {[%clk 0:01:09.8]}
33... Bxg7 {[%clk 0:00:31.9]} 34. Bxf6 {[%clk 0:01:08.1]} 34... Bxf6 {[%clk
0:00:31.4]} 35. b7 {[%clk 0:01:08]} 35... Bxb7 {[%clk 0:00:31.2]} 36. Qxb7
{[%clk 0:01:07.5]} 36... a3 {[%clk 0:00:31.6]} 37. Qb3 {[%clk 0:01:05.9]} 37...
Qa5 {[%clk 0:00:29.7]} 38. Ra1 {[%clk 0:01:04.1]} 38... Bd8 {[%clk 0:00:30]} 39.
Qxa3 {[%clk 0:01:03.2]} 39... Bb6+ {[%clk 0:00:29.6]} 40. Kh1 {[%clk 0:01:03.3]}
40... Qd2 {[%clk 0:00:20.9]} 41. Qxd6 {[%clk 0:01:02.3]} 41... Qf2 {[%clk
0:00:13.3]} 42. Qg6+ {[%clk 0:00:59.6]} 42... Kf8 {[%clk 0:00:12.5]} 43. Qf6+
{[%clk 0:00:59.8]} 43... Ke8 {[%clk 0:00:11.9]} 44. Bxh5+ {[%clk 0:00:58.7]}
44... Kd7 {[%clk 0:00:11.4]} 45. Bg4+ {[%clk 0:00:58.3]} 45... Kc7 {[%clk
0:00:11.4]} 46. Qc6+ {[%clk 0:00:58.1]} 46... Kb8 {[%clk 0:00:11.5]} 47. Ra8#
{[%clk 0:00:57.3]} 1-0